fUST/lending_fUST_20250212
["ID","MTS","AMOUNT","RATE_DAILY","PERIOD"]
[352814865,1739343040005,-500.0,0.00013506,2]
[352814866,1739343040015,-500.0,0.00013506,2]
[352814867,1739343040025,-500.0,0.00013506,2]
[352814868,1739343040035,-501.13971128,0.00013506,2]
[352814869,1739343040044,-501.5848858,0.00013506,2]
[352814870,1739343040054,-500.0,0.00013506,2]
[352814871,1739343040063,-500.0,0.00013506,2]
[352814872,1739343040072,-500.0,0.00013506,2]
[352814873,1739343040082,-500.0,0.00013506,2]
[352814874,1739343040091,-501.22159536,0.00013506,2]
[352814875,1739343040101,-512.66101251,0.00013506,2]
[352814876,1739343040111,-500.0,0.00013506,2]
[352814877,1739343040120,-500.0,0.00013506,2]
[352814878,1739343040129,-500.0,0.00013506,2]
[352814879,1739343040139,-500.0,0.00013506,2]
[352814880,1739343040149,-500.0,0.00013506,2]
[352814881,1739343040158,-500.0,0.00013506,2]
[352814882,1739343040167,-500.0,0.00013506,2]
[352814883,1739343040177,-500.0,0.00013506,2]
[352814884,1739343040190,-311.45476809,0.00013506,2]
[352814885,1739343040200,-500.0,0.00013506,2]
[352814886,1739343040209,-505.67076895,0.00013506,2]
[352814887,1739343040218,-500.0,0.00013506,2]
[352814888,1739343040227,-500.0,0.00013506,2]
[352814889,1739343040237,-500.0,0.00013506,2]
[352814890,1739343040247,-500.0,0.00013506,2]
[352814891,1739343040257,-500.0,0.00013506,2]
[352814892,1739343040266,-500.0,0.00013506,2]
[352814893,1739343040275,-500.0,0.00013506,2]
[352814894,1739343040285,-500.0,0.00013506,2]
[352814896,1739343040294,-500.0,0.00013506,2]
[352814898,1739343040304,-502.28224242,0.00013506,2]
[352814900,1739343040314,-501.54846624,0.00013506,2]
[352814902,1739343040323,-500.0,0.00013506,2]
[352814904,1739343040332,-500.0,0.00013506,2]
[352814906,1739343040342,-500.0,0.00013506,2]
[352814907,1739343040351,-500.0,0.00013506,2]
[352814909,1739343040362,-500.0,0.00013506,2]
[352814911,1739343040371,-361.23025921,0.00013506,2]
[352814913,1739343040381,-501.78035983,0.00013506,2]
[352814915,1739343040391,-338.53199913,0.00013506,2]
[352814917,1739343040400,-500.0,0.00013506,2]
[352814919,1739343040410,-500.0,0.00013506,2]
[352814921,1739343040420,-500.0,0.00013506,2]
[352814923,1739343040429,-500.0,0.00013506,2]
[352814925,1739343040440,-500.0,0.00013506,2]
[352814927,1739343040449,-500.0,0.00013506,2]
[352814929,1739343040458,-509.25054958,0.00013506,2]
[352814931,1739343040468,-192.81024183,0.00013506,2]
[352814933,1739343040478,-500.0,0.00013506,2]
[352814935,1739343040488,-500.0,0.00013506,2]
[352814937,1739343040497,-500.0,0.00013506,2]
[352814938,1739343040506,-500.0,0.00013506,2]
[352814940,1739343040516,-500.0,0.00013506,2]
[352814943,1739343040528,-500.0,0.00013506,2]
[352814945,1739343040538,-500.0,0.00013506,2]
[352814947,1739343040548,-500.0,0.00013506,2]
[352814949,1739343040558,-500.0,0.00013506,2]
[352814951,1739343040567,-500.0,0.00013507,2]
[352814953,1739343040579,-502.67862467,0.00013507,2]
[352814955,1739343040592,-500.0,0.00013507,2]
[352814956,1739343040602,-354.61194659,0.00013507,2]
[352814960,1739343040612,-500.0,0.00013542,2]
[352814961,1739343040623,-392.27044691,0.00013543,2]
[352814963,1739343040633,-885.35,0.0001364,2]
[352814965,1739343040643,-500.0,0.0001364,2]
[352814968,1739343040653,-500.0,0.0001364,2]
[352814969,1739343040664,-500.0,0.0001364,2]
[352814971,1739343040673,-500.0,0.0001364,2]
[352814973,1739343040684,-500.0,0.0001364,2]
[352814975,1739343040693,-500.0,0.0001364,2]
[352814977,1739343040702,-500.0,0.0001364,2]
[352814979,1739343040711,-844.99,0.0001364,2]
[352814981,1739343040721,-500.0,0.00013641,2]
[352814983,1739343040730,-523.67543609,0.00013641,2]
[352814985,1739343040740,-505.87092413,0.00013641,2]
[352814987,1739343040750,-500.0,0.00013641,2]
[352814989,1739343040759,-500.0,0.00013641,2]
[352814991,1739343040768,-500.0,0.00013641,2]
[352814993,1739343040778,-3212.95,0.00013641,2]
[352814995,1739343040787,-500.0,0.00013641,2]
[352814997,1739343040797,-1024.58,0.00013641,2]
[352814999,1739343040806,-1004.71,0.00013641,2]
[352815001,1739343040815,-999.41,0.00013641,2]
[352815003,1739343040825,-500.0,0.00013641,2]
[352815005,1739343040834,-500.0,0.00013641,2]
[352815007,1739343040843,-500.0,0.00013641,2]
[352815009,1739343040853,-500.0,0.00013641,2]
[352815011,1739343040863,-500.0,0.00013641,2]
[352815013,1739343040872,-500.0,0.00013641,2]
[352815015,1739343040882,-9268.96,0.00013641,2]
[352815017,1739343040891,-500.0,0.00013641,2]
[352815019,1739343040900,-500.0,0.00013641,2]
[352815021,1739343040909,-500.0,0.00013641,2]
[352815023,1739343040918,-509.52,0.00013641,2]
[352815024,1739343040928,-500.0,0.00013641,2]
[352815026,1739343040938,-500.0,0.00013641,2]
[352815028,1739343040948,-500.0,0.00013641,2]
[352815030,1739343040957,-500.0,0.00013641,2]
[352815032,1739343040967,-500.0,0.00013641,2]
[352815034,1739343040976,-743.66,0.00013641,2]
[352815036,1739343040985,-500.0,0.00013641,2]
[352815038,1739343040995,-500.0,0.00013641,2]
[352815040,1739343041004,-2835.54,0.00013641,2]
[352815042,1739343041013,-500.0,0.00013641,2]
[352815044,1739343041023,-500.0,0.00013641,2]
[352815046,1739343041032,-184.09803848,0.00013641,2]
[352815048,1739343041042,-500.0,0.00013641,2]
[352815050,1739343041051,-500.0,0.00013641,2]
[352815052,1739343041061,-500.0,0.00013641,2]
[352815054,1739343041070,-616.77,0.00013641,2]
[352815056,1739343041079,-500.0,0.00013641,2]
[352815058,1739343041088,-500.0,0.00013641,2]
[352815060,1739343041098,-373.03,0.00013641,2]
[352815062,1739343041107,-500.0,0.00013641,2]
[352815064,1739343041116,-500.0,0.00013641,2]
[352815066,1739343041126,-500.0,0.00013641,2]
[352815068,1739343041135,-500.0,0.00013642,2]
[352815070,1739343041144,-500.0,0.00013642,2]
[352815072,1739343041153,-500.0,0.00013642,2]
[352815074,1739343041162,-500.0,0.00013642,2]
[352815076,1739343041171,-500.0,0.00013642,2]
[352815078,1739343041184,-500.0,0.00013642,2]
[352815080,1739343041193,-167.92973331,0.00013642,2]
[352815082,1739343041202,-500.0,0.00013642,2]
[352815084,1739343041212,-3490.09,0.00013642,2]
[352815086,1739343041222,-500.0,0.00013642,2]
[352815088,1739343041231,-500.0,0.00013642,2]
[352815090,1739343041240,-500.0,0.00013642,2]
[352815091,1739343041250,-500.0,0.00013642,2]
[352815093,1739343041259,-500.0,0.00013642,2]
[352815095,1739343041267,-500.0,0.00013642,2]
[352815097,1739343041277,-378.3472983,0.00013642,2]
[352815099,1739343041286,-500.0,0.00013642,2]
[352815101,1739343041295,-500.0,0.00013642,2]
[352815103,1739343041304,-500.0,0.00013642,2]
[352815105,1739343041313,-4228.31,0.00013642,2]
[352815107,1739343041322,-509.91,0.00013642,2]
[352815109,1739343041332,-500.0,0.00013642,2]
[352815111,1739343041341,-500.0,0.00013642,2]
[352815113,1739343041350,-500.0,0.00013642,2]
[352815115,1739343041359,-500.0,0.00013642,2]
[352815117,1739343041368,-500.0,0.00013643,2]
[352815119,1739343041378,-500.0,0.00013643,2]
[352815121,1739343041388,-500.0,0.00013643,2]
[352815123,1739343041398,-500.0,0.00013643,2]
[352815125,1739343041408,-500.0,0.00013643,2]
[352815127,1739343041418,-539.6305174,0.00013643,2]
[352815129,1739343041427,-213.96652276,0.00013643,2]
[352815131,1739343041437,-500.0,0.00013643,2]
[352815133,1739343041446,-500.0,0.00013643,2]
[352815135,1739343041455,-506.52232214,0.00013643,2]
[352815137,1739343041465,-500.0,0.00013643,2]
[352815139,1739343041474,-500.0,0.00013643,2]
[352815141,1739343041483,-502.53382021,0.00013643,2]
[352815143,1739343041493,-500.0,0.00013643,2]
[352815145,1739343041502,-500.0,0.00013643,2]
[352815147,1739343041511,-500.0,0.00013643,2]
[352815149,1739343041520,-500.0,0.00013643,2]
[352815151,1739343041529,-259.40022541,0.00013643,2]
[352815152,1739343041538,-500.0,0.00013643,2]
[352815154,1739343041547,-500.0,0.00013643,2]
[352815156,1739343041556,-504.37975815,0.00013643,2]
[352815158,1739343041565,-500.0,0.00013643,2]
[352815160,1739343041575,-500.0,0.00013643,2]
[352815162,1739343041587,-500.0,0.00013643,2]
[352815164,1739343041597,-505.12821359,0.00013643,2]
[352815166,1739343041606,-217.99375408,0.00013645,2]
[352815168,1739343041616,-414.59453275,0.00013698,14]
[352815170,1739343041626,-1000.0,0.00013698,2]
[352815172,1739343041635,-1000.0,0.00013698,2]
[352815174,1739343041644,-500.0,0.00013698,2]
[352815176,1739343041654,-500.0,0.00013698,2]
[352815178,1739343041665,-365.597717,0.00013699,2]
[352815180,1739343041674,-500.0,0.00013699,2]
[352815182,1739343041685,-500.0,0.00013699,2]
[352815184,1739343041695,-500.0,0.00013699,2]
[352815186,1739343041704,-500.0,0.00013699,2]
[352815188,1739343041713,-500.0,0.00013699,2]
[352815197,1739343041807,-335.60702229,0.00013699,2]
[352815198,1739343041817,-500.0,0.00013699,2]
[352815199,1739343041827,-500.0,0.00013699,2]
[352815200,1739343041837,-500.0,0.00013699,2]
[352815201,1739343041847,-457.00884146,0.00013699,2]
[352815202,1739343041856,-500.0,0.00013699,2]
[352815203,1739343041866,-500.0,0.00013699,2]
[352815204,1739343041876,-500.0,0.00013699,2]
[352815205,1739343041885,-500.0,0.00013699,2]
[352815206,1739343041895,-500.0,0.00013699,2]
[352815207,1739343041903,-500.0,0.00013699,2]
[352815208,1739343041913,-500.0,0.00013699,2]
[352815209,1739343041923,-500.0,0.00013699,2]
[352815210,1739343041932,-500.0,0.00013699,2]
[352815211,1739343041942,-500.0,0.00013699,2]
[352815212,1739343041952,-500.0,0.00013699,2]
[352815213,1739343041961,-500.0,0.00013699,2]
[352815214,1739343041970,-500.0,0.00013699,2]
[352815215,1739343041979,-500.0,0.00013699,2]
[352815216,1739343041989,-500.0,0.00013699,2]
[352815217,1739343041998,-500.0,0.00013699,2]
[352815218,1739343042008,-500.0,0.00013699,2]
[352815219,1739343042017,-500.0,0.00013699,2]
[352815220,1739343042026,-500.0,0.00013699,2]
[352815221,1739343042035,-500.0,0.00013699,2]
[352815222,1739343042044,-500.0,0.00013699,2]
[352815223,1739343042054,-500.0,0.00013699,2]
[352815224,1739343042063,-500.0,0.00013699,2]
[352815225,1739343042072,-500.0,0.00013699,2]
[352815226,1739343042081,-500.0,0.00013699,2]
[352815227,1739343042090,-160.18,0.000137,2]
[352815228,1739343042099,-160.18,0.000137,2]
[352815229,1739343042109,-160.18,0.000137,2]
[352815230,1739343042118,-160.18,0.000137,2]
[352815231,1739343042127,-160.18,0.000137,2]
[352815232,1739343042136,-160.18,0.000137,2]
[352815233,1739343042145,-160.18,0.000137,2]
[352815234,1739343042154,-160.18,0.000137,2]
[352815235,1739343042163,-160.18,0.000137,2]
[352815236,1739343042172,-885.35,0.00013777,2]
[352815237,1739343042181,-500.0,0.00013777,2]
[352815238,1739343042191,-500.0,0.00013777,2]
[352815239,1739343042200,-500.0,0.00013777,2]
[352815240,1739343042209,-358.04821648,0.00013777,2]
[352815241,1739343042218,-844.99,0.00013777,2]
[352815242,1739343042227,-500.0,0.00013778,2]
[352815243,1739343042236,-500.0,0.00013778,2]
[352815244,1739343042246,-286.4132229,0.00013778,2]
[352815245,1739343042255,-500.0,0.00013778,2]
[352815246,1739343042264,-500.0,0.00013778,2]
[352815247,1739343042272,-500.0,0.00013778,2]
[352815248,1739343042280,-500.0,0.00013778,2]
[352815249,1739343042290,-3212.95,0.00013778,2]
[352815250,1739343042299,-337.03423839,0.00013778,2]
[352815251,1739343042308,-1024.58,0.00013778,2]
[352815252,1739343042317,-1004.71,0.00013778,2]
[352815253,1739343042326,-999.41,0.00013778,2]
[352815254,1739343042335,-500.0,0.00013778,2]
[352815255,1739343042344,-500.0,0.00013778,2]
[352815256,1739343042353,-500.0,0.00013778,2]
[352815257,1739343042362,-500.0,0.00013778,2]
[352815258,1739343042371,-500.0,0.00013778,2]
[352815259,1739343042380,-500.0,0.00013778,2]
[352815260,1739343042389,-9268.96,0.00013778,2]
[352815261,1739343042398,-500.0,0.00013778,2]
[352815262,1739343042408,-509.52,0.00013778,2]
[352815263,1739343042417,-500.0,0.00013778,2]
[352815264,1739343042426,-575.37063315,0.00013778,2]
[352815265,1739343042436,-362.19803798,0.00013778,2]
[352815266,1739343042445,-500.0,0.00013778,2]
[352815267,1739343042455,-500.0,0.00013778,2]
[352815268,1739343042464,-743.66,0.00013778,2]
[352815269,1739343042473,-500.0,0.00013778,2]
[352815270,1739343042482,-2835.54,0.00013778,2]
[352815271,1739343042491,-500.0,0.00013778,2]
[352815272,1739343042501,-500.0,0.00013778,2]
[352815273,1739343042510,-500.0,0.00013778,2]
[352815274,1739343042519,-500.0,0.00013778,2]
[352815275,1739343042528,-500.0,0.00013778,2]
[352815276,1739343042537,-616.77,0.00013778,2]
[352815277,1739343042546,-500.0,0.00013778,2]
[352815278,1739343042555,-500.0,0.00013778,2]
[352815279,1739343042564,-500.0,0.00013778,2]
[352815280,1739343042574,-579.2424811,0.00013778,2]
[352815282,1739343042585,-500.0,0.00013778,2]
[352815284,1739343042595,-500.0,0.00013779,2]
[352815287,1739343042605,-500.0,0.00013779,2]
[352815290,1739343042615,-500.0,0.00013779,2]
[352815291,1739343042624,-501.65998518,0.00013779,2]
[352815292,1739343042634,-502.98,0.00013779,2]
[352815293,1739343042644,-500.0,0.00013779,2]
[352815294,1739343042653,-500.0,0.00013779,2]
[352815295,1739343042662,-3490.09,0.00013779,2]
[352815296,1739343042671,-500.0,0.00013779,2]
[352815297,1739343042680,-500.0,0.00013779,2]
[352815298,1739343042690,-500.0,0.00013779,2]
[352815299,1739343042699,-495.96016509,0.00013779,2]
[352815300,1739343042708,-500.0,0.00013779,2]
[352815301,1739343042717,-500.0,0.00013779,2]
[352815302,1739343042727,-4228.31,0.00013779,2]
[352815303,1739343042736,-509.91,0.00013779,2]
[352815304,1739343042745,-500.0,0.00013779,2]
[352815305,1739343042754,-500.0,0.00013779,2]
[352815306,1739343042763,-500.0,0.00013779,2]
[352815307,1739343042772,-500.0,0.00013779,2]
[352815308,1739343042780,-504.09385091,0.0001378,2]
[352815309,1739343042789,-500.0,0.0001378,2]
[352815310,1739343042798,-500.0,0.0001378,2]
[352815311,1739343042807,-342.42354595,0.0001378,2]
[352815312,1739343042816,-162.48117573,0.0001378,2]
[352815313,1739343042825,-500.0,0.0001378,2]
[352815314,1739343042835,-212.07100562,0.0001378,2]
[352815315,1739343042844,-502.63645887,0.0001378,2]
[352815316,1739343042855,-371.78900568,0.0001378,2]
[352815317,1739343042864,-1000.0,0.0001378,2]
[352815318,1739343042873,-500.0,0.0001378,2]
[352815319,1739343042883,-500.0,0.0001378,2]
[352815320,1739343042891,-500.0,0.0001378,2]
[352815321,1739343042899,-500.0,0.0001378,2]
[352815322,1739343042908,-500.0,0.0001378,2]
[352815323,1739343042918,-500.0,0.00013809,2]
[352815324,1739343042928,-38046.20232325,0.00013816,2]
[352815325,1739343042938,-500.0,0.00013838,2]
[352815326,1739343042947,-217.99375408,0.00013885,2]
[352815327,1739343042956,-885.35,0.00013914,2]
[352815328,1739343042966,-500.0,0.00013914,2]
[352815329,1739343042976,-500.0,0.00013914,2]
[352815330,1739343042985,-844.99,0.00013914,2]
[352815331,1739343042994,-500.0,0.00013915,2]
[352815332,1739343043003,-500.0,0.00013915,2]
[352815333,1739343043012,-500.0,0.00013915,2]
[352815334,1739343043022,-500.0,0.00013915,2]
[352815335,1739343043031,-500.0,0.00013915,2]
[352815336,1739343043040,-3212.95,0.00013915,2]
[352815337,1739343043050,-1024.58,0.00013915,2]
[352815338,1739343043059,-1004.71,0.00013915,2]
[352815339,1739343043068,-999.41,0.00013915,2]
[352815340,1739343043078,-500.0,0.00013915,2]
[352815341,1739343043087,-500.0,0.00013915,2]
[352815342,1739343043096,-500.0,0.00013915,2]
[352815343,1739343043105,-500.0,0.00013915,2]
[352815344,1739343043115,-500.0,0.00013915,2]
[352815345,1739343043124,-500.0,0.00013915,2]
[352815346,1739343043134,-9268.96,0.00013915,2]
[352815347,1739343043144,-500.0,0.00013915,2]
[352815348,1739343043153,-509.52,0.00013915,2]
[352815349,1739343043163,-500.0,0.00013915,2]
[352815350,1739343043172,-500.0,0.00013915,2]
[352815351,1739343043182,-500.0,0.00013915,2]
[352815352,1739343043192,-743.66,0.00013915,2]
[352815353,1739343043201,-623.29212763,0.00013915,2]
[352815354,1739343043210,-2835.54,0.00013915,2]
[352815355,1739343043222,-526.3897287,0.00013915,2]
[352815356,1739343043231,-506.38127849,0.00013915,2]
[352815357,1739343043241,-616.77,0.00013915,2]
[352815358,1739343043249,-500.0,0.00013915,2]
[352815359,1739343043258,-500.0,0.00013915,2]
[352815360,1739343043267,-500.0,0.00013915,2]
[352815361,1739343043276,-500.0,0.00013915,2]
[352815362,1739343043285,-500.0,0.00013916,2]
[352815363,1739343043294,-500.0,0.00013916,2]
[352815365,1739343043303,-500.0,0.00013916,2]
[352815367,1739343043312,-500.0,0.00013916,2]
[352815369,1739343043322,-500.0,0.00013916,2]
[352815370,1739343043331,-3490.09,0.00013916,2]
[352815371,1739343043340,-500.0,0.00013916,2]
[352815372,1739343043350,-398.23614346,0.00013916,2]
[352815373,1739343043359,-500.0,0.00013916,2]
[352815374,1739343043370,-500.0,0.00013916,2]
[352815375,1739343043380,-4228.31,0.00013916,2]
[352815376,1739343043390,-509.91,0.00013916,2]
[352815377,1739343043400,-500.0,0.00013916,2]
[352815379,1739343043410,-500.0,0.00013916,2]
[352815380,1739343043419,-500.0,0.00013916,2]
[352815381,1739343043431,-500.0,0.00013916,2]
[352815382,1739343043440,-500.0,0.00013917,2]
[352815383,1739343043450,-1000.0,0.00013917,2]
[352815384,1739343043459,-397.32602959,0.00013917,2]
[352815385,1739343043468,-196.51823698,0.00013917,2]
[352815386,1739343043478,-500.0,0.00013917,2]
[352815387,1739343043487,-500.0,0.00013917,2]
[352815388,1739343043495,-500.0,0.00013917,2]
[352815389,1739343043504,-448.141,0.00013944,2]
[352815390,1739343043514,-500.0,0.00014,7]
[352815391,1739343043523,-500.0,0.00014,7]
[352815392,1739343043532,-500.0,0.00014,7]
[352815393,1739343043541,-500.0,0.00014,7]
[352815394,1739343043551,-500.0,0.00014,7]
[352815395,1739343043560,-500.0,0.00014,7]
[352815396,1739343043569,-500.0,0.00014,7]
[352815397,1739343043580,-500.0,0.00014,7]
[352815398,1739343043591,-500.0,0.00014,7]
[352815399,1739343043601,-500.0,0.00014,7]
[352815400,1739343043611,-500.0,0.00014,7]
[352815401,1739343043621,-500.0,0.00014,7]
[352815402,1739343043631,-500.0,0.00014,7]
[352815403,1739343043640,-500.0,0.00014,7]
[352815404,1739343043649,-500.0,0.00014,7]
[352815405,1739343043659,-500.0,0.00014,7]
[352815406,1739343043668,-500.0,0.00014,7]
[352815407,1739343043678,-500.0,0.00014,7]
[352815408,1739343043687,-500.0,0.00014,7]
[352815409,1739343043696,-500.0,0.00014,7]
[352815410,1739343043706,-500.0,0.00014,7]
[352815411,1739343043715,-500.0,0.00014,7]
[352815412,1739343043724,-500.0,0.00014,7]
[352815413,1739343043734,-500.0,0.00014,7]
[352815414,1739343043743,-500.0,0.00014,7]
[352815415,1739343043752,-500.0,0.00014,7]
[352815416,1739343043761,-500.0,0.00014,7]
[352815417,1739343043770,-500.0,0.00014,7]
[352815418,1739343043779,-500.0,0.00014,7]
[352815419,1739343043788,-500.0,0.00014,7]
[352815420,1739343043797,-500.0,0.00014,7]
[352815421,1739343043806,-500.0,0.00014,7]
[352815422,1739343043815,-500.0,0.00014,7]
[352815424,1739343043825,-500.0,0.00014,7]
[352815426,1739343043834,-500.0,0.00014,7]
[352815428,1739343043843,-500.0,0.00014,7]
[352815430,1739343043852,-500.0,0.00014,7]
[352815432,1739343043862,-500.0,0.00014,7]
[352815433,1739343043873,-500.0,0.00014,7]
[352815434,1739343043883,-500.0,0.00014,7]
[352815435,1739343043893,-500.0,0.00014,7]
[352815436,1739343043902,-500.0,0.00014,7]
[352815437,1739343043989,-500.0,0.00014,7]
[352815438,1739343043997,-500.0,0.00014,7]
[352815439,1739343044006,-500.0,0.00014,7]
[352815440,1739343044015,-500.0,0.00014,7]
[352815441,1739343044024,-500.0,0.00014,7]
[352815442,1739343044033,-500.0,0.00014,7]
[352815443,1739343044042,-500.0,0.00014,7]
[352815444,1739343044052,-500.0,0.00014,7]
[352815445,1739343044061,-500.0,0.00014,7]
[352815446,1739343044070,-500.0,0.00014,7]
[352815447,1739343044079,-500.0,0.00014,7]
[352815448,1739343044088,-500.0,0.00014,7]
[352815449,1739343044097,-500.0,0.00014,7]
[352815450,1739343044106,-603.13,0.00014,7]
[352815451,1739343044116,-885.35,0.00014051,2]
[352815452,1739343044125,-151.4518169,0.00014051,2]
[352815453,1739343044134,-500.0,0.00014051,2]
[352815454,1739343044143,-844.99,0.00014051,2]
[352815455,1739343044153,-500.0,0.00014052,2]
[352815456,1739343044162,-500.0,0.00014052,2]
[352815457,1739343044171,-500.0,0.00014052,2]
[352815458,1739343044180,-500.0,0.00014052,2]
[352815459,1739343044189,-500.0,0.00014052,2]
[352815460,1739343044198,-3212.95,0.00014052,2]
[352815461,1739343044208,-1024.58,0.00014052,2]
[352815462,1739343044217,-1004.71,0.00014052,2]
[352815463,1739343044226,-999.41,0.00014052,2]
[352815464,1739343044235,-500.0,0.00014052,2]
[352815465,1739343044245,-500.0,0.00014052,2]
[352815466,1739343044254,-500.0,0.00014052,2]
[352815467,1739343044263,-500.0,0.00014052,2]
[352815468,1739343044272,-9268.96,0.00014052,2]
[352815469,1739343044282,-500.0,0.00014052,2]
[352815470,1739343044291,-509.52,0.00014052,2]
[352815471,1739343044300,-500.0,0.00014052,2]
[352815472,1739343044309,-500.0,0.00014052,2]
[352815473,1739343044318,-500.0,0.00014052,2]
[352815474,1739343044327,-743.66,0.00014052,2]
[352815475,1739343044336,-2835.54,0.00014052,2]
[352815476,1739343044346,-616.77,0.00014052,2]
[352815477,1739343044355,-592.42039046,0.00014052,2]
[352815478,1739343044364,-500.0,0.00014052,2]
[352815479,1739343044374,-500.0,0.00014052,2]
[352815480,1739343044384,-500.0,0.00014052,2]
[352815481,1739343044393,-500.0,0.00014053,2]
[352815482,1739343044404,-269.89626253,0.00014053,2]
[352815483,1739343044414,-500.0,0.00014053,2]
[352815484,1739343044424,-500.0,0.00014053,2]
[352815485,1739343044433,-500.0,0.00014053,2]
[352815486,1739343044444,-3490.09,0.00014053,2]
[352815487,1739343044454,-500.0,0.00014053,2]
[352815488,1739343044461,-500.0,0.00014053,2]
[352815489,1739343044470,-500.0,0.00014053,2]
[352815490,1739343044479,-4228.31,0.00014053,2]
[352815491,1739343044488,-509.91,0.00014053,2]
[352815492,1739343044498,-500.0,0.00014053,2]
[352815493,1739343044507,-500.0,0.00014053,2]
[352815494,1739343044516,-500.0,0.00014053,2]
[352815495,1739343044525,-554.7766461,0.00014054,2]
[352815496,1739343044535,-500.0,0.00014054,2]
[352815497,1739343044544,-500.0,0.00014054,2]
[352815498,1739343044553,-500.0,0.00014054,2]
[352815499,1739343044562,-217.99375408,0.00014124,2]
[352815500,1739343044571,-885.35,0.00014188,2]
[352815501,1739343044583,-500.0,0.00014188,2]
[352815502,1739343044593,-844.99,0.00014188,2]
[352815503,1739343044602,-500.0,0.00014189,2]
[352815504,1739343044611,-500.0,0.00014189,2]
[352815505,1739343044620,-500.0,0.00014189,2]
[352815506,1739343044630,-500.0,0.00014189,2]
[352815507,1739343044639,-500.0,0.00014189,2]
[352815508,1739343044649,-3212.95,0.00014189,2]
[352815509,1739343044660,-1024.58,0.00014189,2]
[352815510,1739343044672,-1004.71,0.00014189,2]
[352815511,1739343044681,-999.41,0.00014189,2]
[352815512,1739343044690,-500.0,0.00014189,2]
[352815513,1739343044700,-500.0,0.00014189,2]
[352815514,1739343044709,-500.0,0.00014189,2]
[352815515,1739343044718,-500.0,0.00014189,2]
[352815516,1739343044727,-9268.96,0.00014189,2]
[352815517,1739343044737,-500.0,0.00014189,2]
[352815518,1739343044746,-509.52,0.00014189,2]
[352815519,1739343044756,-500.0,0.00014189,2]
[352815520,1739343044765,-500.0,0.00014189,2]
[352815521,1739343044775,-500.0,0.00014189,2]
[352815522,1739343044784,-743.66,0.00014189,2]
[352815523,1739343044794,-2835.54,0.00014189,2]
[352815524,1739343044803,-616.77,0.00014189,2]
[352815525,1739343044812,-500.0,0.00014189,2]
[352815526,1739343044823,-500.0,0.00014189,2]
[352815527,1739343044832,-500.0,0.00014189,2]
[352815528,1739343044842,-500.0,0.0001419,2]
[352815529,1739343044851,-500.0,0.0001419,2]
[352815530,1739343044860,-500.0,0.0001419,2]
[352815531,1739343044869,-500.0,0.0001419,2]
[352815532,1739343044878,-3490.09,0.0001419,2]